bitfinex-derivatives/quotes_BTCF0:USTF0_20240820
["timestamp","ask_amount","ask_price","bid_price","bid_amount"]
[1724170548508,0.00405162,59000.0,58999.0,0.068782]
[1724170548705,0.07183262,59000.0,58999.0,0.068782]
[1724170548900,0.07183262,59000.0,58999.0,0.001]
[1724170548901,0.43263262,59000.0,58999.0,0.001]
[1724170549101,0.61133262,59000.0,58999.0,0.001]
[1724170550698,0.61133262,59000.0,58991.0,0.06768017]
[1724170550699,0.067786,58996.0,58995.0,0.05076056]
[1724170550906,0.24058394,58996.0,58995.0,0.05076056]
[1724170551204,0.067787,58995.0,58993.0,0.05076056]
[1724170551412,0.43138594,58994.0,58993.0,0.05076056]
[1724170551703,0.067792,58991.0,58989.0,0.05101983]
[1724170552004,0.07059094,58990.0,58989.0,0.05101983]
[1724170552394,0.15469828,58990.0,58989.0,0.00025422]
[1724170552910,0.07583701,58990.0,58989.0,0.00025422]
[1724170553607,0.0678,58984.0,58976.0,0.06768017]
[1724170553806,0.3608,58977.0,58973.0,0.00017896]
[1724170554001,0.067811,58974.0,58973.0,0.00017896]
[1724170554202,0.067811,58974.0,58973.0,0.0509376]
[1724170554203,0.0534358,58974.0,58973.0,0.0509376]
[1724170554404,0.00279794,58974.0,58973.0,0.06799096]
[1724170554605,0.00279877,58975.0,58973.0,0.00017896]
[1724170554805,0.04643663,58976.0,58973.0,0.00017896]
[1724170555115,0.00279877,58975.0,58974.0,0.067811]
[1724170555504,0.00279877,58975.0,58973.0,0.00017896]
[1724170555505,0.3608,58977.0,58975.0,0.06781]
[1724170556211,0.428609,58977.0,58975.0,0.06781]
[1724170556410,0.428609,58977.0,58973.0,0.00717896]
[1724170556411,0.3661547,58977.0,58973.0,0.00717896]
[1724170556609,0.067811,58974.0,58973.0,0.00717896]
[1724170557013,0.067811,58974.0,58973.0,0.00017896]
[1724170557207,0.060811,58974.0,58973.0,0.00517896]
[1724170557721,0.060811,58974.0,58973.0,0.00017896]
[1724170557909,0.569531,58974.0,58973.0,0.00217896]
[1724170558119,0.569531,58974.0,58968.0,0.06807122]
[1724170558120,0.067817,58969.0,58968.0,0.00025422]
[1724170558311,0.428617,58969.0,58968.0,0.00025422]
[1724170558713,0.424617,58969.0,58968.0,0.00025422]
[1724170559119,0.42480383,58969.0,58968.0,0.00025422]
[1724170559819,0.42580383,58969.0,58968.0,0.00625422]
[1724170560021,0.43107229,58969.0,58968.0,0.00625422]
[1724170560522,0.57907229,58969.0,58968.0,0.00625422]
[1724170561011,0.57907229,58969.0,58955.0,0.05075864]
[1724170561012,0.063823,58964.0,58961.0,0.067826]
[1724170561214,0.3608,58962.0,58961.0,0.067826]
[1724170561409,0.3609519,58962.0,58961.0,0.067826]
[1724170562217,0.3609519,58962.0,58961.0,0.071826]
[1724170562418,0.0001519,58962.0,58961.0,0.139652]
[1724170562622,0.00025422,58967.0,58966.0,0.13564]
[1724170562922,0.00025422,58967.0,58966.0,0.49644]
[1724170563120,0.00025422,58967.0,58966.0,4.26644]
[1724170563418,0.06807322,58967.0,58966.0,3.83782]
[1724170563818,0.00025422,58967.0,58966.0,3.83782]
[1724170564018,0.06807322,58967.0,58966.0,3.77]
[1724170564219,0.22807322,58967.0,58966.0,3.77]
[1724170564524,0.40417322,58967.0,58966.0,3.77]
[1724170564721,0.40517322,58967.0,58966.0,3.774]
[1724170565115,0.40517322,58967.0,58966.0,3.84182]
[1724170565316,0.40517322,58967.0,58966.0,0.004]
[1724170566018,0.00125422,58967.0,58966.0,0.07182]
[1724170566624,0.00125422,58967.0,58966.0,3.84182]
[1724170567818,0.07187227,58967.0,58966.0,3.774]
[1724170568019,0.50049127,58967.0,58966.0,0.004]
[1724170568421,0.59267227,58967.0,58966.0,0.004]
[1724170568623,0.52485327,58967.0,58966.0,0.07182]
[1724170568819,0.52485353,58967.0,58966.0,0.07182]
[1724170569121,0.52205422,58967.0,58966.0,0.07182]
[1724170569321,0.36485346,58967.0,58966.0,0.07182]
[1724170569524,0.00125422,58967.0,58966.0,0.07182]
[1724170569722,0.00125422,58967.0,58966.0,3.90964]
[1724170570025,0.00125422,58967.0,58966.0,3.84182]
[1724170571323,0.00125422,58967.0,58960.0,0.00523517]
[1724170571324,0.067826,58961.0,58960.0,0.00523517]
[1724170571637,0.43142544,58961.0,58960.0,0.00523517]
[1724170571921,0.06783,58958.0,58957.0,3.83783]
[1724170572125,0.07062944,58958.0,58957.0,3.83783]
[1724170572924,0.06662944,58958.0,58957.0,3.83783]
[1724170573122,0.36105422,58967.0,58966.0,0.06782]
[1724170573431,0.59167289,58967.0,58966.0,0.06782]
[1724170574224,0.52385389,58967.0,58966.0,0.06782]
[1724170574628,0.52105422,58967.0,58966.0,0.06782]
[1724170575125,0.52105422,58967.0,58966.0,0.13564]
[1724170575326,0.00025422,58967.0,58966.0,0.13564]
[1724170575834,0.00125422,58967.0,58966.0,0.13964]
[1724170576331,0.00125422,58967.0,58966.0,0.07182]
[1724170579032,0.06907322,58967.0,58966.0,0.07182]
[1724170579232,0.22907322,58967.0,58966.0,0.07182]
[1724170579431,0.22907322,58967.0,58966.0,0.004]
[1724170581130,0.22907322,58967.0,58966.0,0.07182]
[1724170581528,0.23187246,58967.0,58966.0,0.07182]
[1724170582537,0.23187246,58967.0,58966.0,0.12257864]
[1724170582732,0.23187246,58967.0,58966.0,0.05475864]
[1724170583134,0.29939364,58967.0,58966.0,0.004]
[1724170583433,0.23187246,58967.0,58966.0,0.004]
[1724170583830,0.29928743,58967.0,58966.0,0.004]
[1724170584132,0.29928751,58967.0,58966.0,0.004]
[1724170584325,0.23187254,58967.0,58966.0,0.004]
[1724170587135,0.24023355,58967.0,58966.0,0.004]
[1724170587338,0.24023355,58967.0,58963.0,0.05080081]
[1724170587339,0.067822,58964.0,58963.0,0.05080081]
[1724170587637,0.067831,58957.0,58950.0,0.05080321]
[1724170587842,0.067831,58957.0,58948.0,0.11864321]
[1724170587843,0.42822295,58951.0,58948.0,0.11864321]
[1724170588027,0.42822295,58951.0,58938.0,0.3666]
[1724170588028,0.13525995,58949.0,58947.0,0.05080321]
[1724170588333,0.1856,58948.0,58947.0,0.067842]
[1724170588527,0.17,58949.0,58947.0,0.067842]
[1724170588528,0.36312,58951.0,58950.0,0.067839]
[1724170588730,0.5036,58951.0,58950.0,0.067839]
[1724170588925,0.5036,58951.0,58950.0,0.070839]
[1724170589126,0.50548257,58951.0,58950.0,0.070839]
[1724170589338,0.36548257,58951.0,58950.0,0.070839]
[1724170589535,0.36828255,58951.0,58950.0,0.070839]
[1724170589737,0.00568257,58951.0,58950.0,0.070839]
[1724170589933,0.001,58951.0,58950.0,0.071839]
[1724170590240,0.001,58951.0,58950.0,0.12264221]
[1724170590435,0.001,58951.0,58950.0,0.071839]
[1724170590627,0.001,58951.0,58950.0,3.841839]
[1724170591234,0.001,58951.0,58950.0,3.838839]
[1724170591839,0.00562678,58955.0,58954.0,0.067834]
[1724170592141,0.00279965,58955.0,58954.0,0.067834]
[1724170592441,0.00025444,58956.0,58955.0,0.067833]
[1724170592831,0.00025444,58956.0,58955.0,0.11856931]
[1724170593035,0.00305401,58956.0,58955.0,3.837833]
[1724170593437,0.003054,58956.0,58955.0,3.837833]
[1724170594138,0.3608,58959.0,58958.0,0.067829]
[1724170594438,0.36359956,58959.0,58958.0,0.067829]
[1724170594743,0.36359956,58959.0,58958.0,3.905658]
[1724170595242,0.36359956,58959.0,58958.0,3.840829]
[1724170595742,0.36359953,58959.0,58958.0,3.840829]
[1724170596243,0.36359953,58959.0,58958.0,3.89156429]
[1724170596443,0.36459953,58959.0,58958.0,3.89156429]
[1724170596834,0.36459953,58959.0,58958.0,3.840829]
[1724170597239,0.36459953,58959.0,58958.0,3.908658]
[1724170597240,0.00379953,58959.0,58958.0,3.908658]
[1724170597545,0.00025444,58964.0,58963.0,0.067824]
[1724170597742,0.00025444,58964.0,58963.0,0.135648]
[1724170598237,0.49602695,58978.0,58977.0,0.067808]
[1724170598438,0.58444814,58978.0,58977.0,0.067808]
[1724170598634,0.06781,58975.0,58974.0,0.067811]
[1724170599345,0.36664114,58978.0,58977.0,0.067808]
[1724170599550,0.44244714,58978.0,58977.0,0.067808]
[1724170599744,0.44244714,58978.0,58977.0,3.837808]
[1724170599745,0.44744714,58978.0,58977.0,3.837808]
[1724170600337,0.08664714,58978.0,58977.0,3.837808]
[1724170600538,0.01884114,58978.0,58977.0,3.837808]
[1724170601140,0.01084114,58978.0,58977.0,3.837808]
[1724170601952,0.01884114,58978.0,58977.0,3.837808]
[1724170603450,0.013,58978.0,58977.0,3.837808]
[1724170604438,0.080806,58978.0,58977.0,3.837808]
[1724170604741,0.067816,58972.0,58971.0,0.067814]
[1724170604941,0.588616,58972.0,58971.0,0.067814]
[1724170606054,0.588616,58972.0,58971.0,0.068814]
[1724170606239,0.428616,58972.0,58971.0,0.068814]
[1724170606443,0.067816,58972.0,58971.0,0.068814]
[1724170607352,0.06781,58975.0,58974.0,0.067809]
[1724170608749,0.07381,58975.0,58974.0,0.067809]
[1724170609451,0.0766088,58975.0,58974.0,0.067809]
[1724170610056,0.3695988,58975.0,58969.0,0.00025444]
[1724170610254,0.067816,58970.0,58969.0,0.00025444]
[1724170610455,0.0706148,58970.0,58969.0,0.06807144]
[1724170611048,0.067813,58973.0,58972.0,0.067813]
[1724170611251,0.15,58973.0,58972.0,0.067813]
[1724170611550,0.00432,58975.0,58974.0,0.067811]
[1724170611755,0.57061,58975.0,58974.0,0.067811]
[1724170611949,0.57340894,58975.0,58974.0,0.067811]
[1724170612354,0.57140894,58975.0,58974.0,0.067811]
[1724170612752,0.14867093,58975.0,58974.0,0.067811]
[1724170613059,0.00867093,58975.0,58974.0,0.067811]
[1724170613254,0.00867093,58975.0,58974.0,0.496422]
[1724170613650,0.01067093,58975.0,58974.0,0.496422]
[1724170614349,0.00025444,58980.0,58979.0,0.13561]
[1724170614552,0.00025444,58980.0,58979.0,0.49641]
[1724170614952,0.00025444,58980.0,58979.0,4.26641]
[1724170615355,0.00025444,58980.0,58979.0,4.31701798]
[1724170615661,0.00725444,58980.0,58979.0,4.26641]
[1724170615858,0.01725444,58980.0,58979.0,4.3170179]
[1724170616253,0.01725444,58980.0,58979.0,4.26641]
[1724170616453,0.25189,58993.0,58991.0,0.067791]
[1724170616654,0.36666566,58992.0,58991.0,0.067791]
[1724170616856,0.43445566,58992.0,58991.0,0.067791]
[1724170618458,0.44845566,58992.0,58991.0,0.068791]
[1724170618961,0.46245566,58992.0,58991.0,0.068791]
[1724170621063,0.028,58992.0,58991.0,0.068791]
[1724170621263,0.028,58992.0,58991.0,0.136582]
[1724170621459,0.028,58992.0,58991.0,0.068791]
[1724170622259,0.022,58992.0,58991.0,0.068791]
[1724170622467,0.008,58992.0,58991.0,0.069791]
[1724170622775,0.019,58992.0,58991.0,0.069791]
[1724170623174,0.08679,58992.0,58991.0,0.069791]
[1724170623469,0.49318,58992.0,58991.0,0.002]
[1724170623779,0.26539,58992.0,58991.0,0.069791]
[1724170624965,0.1976,58992.0,58991.0,0.002]
[1724170625163,0.49318,58992.0,58991.0,0.002]
[1724170625572,0.42539,58992.0,58991.0,0.002]
[1724170625870,0.42539,58992.0,58991.0,0.069791]
[1724170626265,0.179,58992.0,58991.0,0.069791]
[1724170628363,0.019,58992.0,58991.0,0.069791]
[1724170628560,0.169,58992.0,58991.0,0.069791]
[1724170628971,0.169,58992.0,58991.0,0.12044328]
[1724170628972,0.019,58992.0,58991.0,0.12044328]
[1724170629169,0.019,58992.0,58991.0,0.18823428]
[1724170629375,0.019,58992.0,58991.0,0.137582]
[1724170631475,0.019,58992.0,58991.0,0.069791]
[1724170632468,0.019,58992.0,58991.0,0.137582]
[1724170632670,0.019,58992.0,58991.0,0.069791]
[1724170633068,0.019,58992.0,58991.0,0.137582]
[1724170635269,0.019,58992.0,58991.0,0.205373]
[1724170635476,0.00571735,58994.0,58991.0,0.205373]
[1724170635477,0.0002543,58997.0,58996.0,0.135572]
[1724170635967,0.0002543,58997.0,58996.0,3.905572]
[1724170636779,0.0002543,58997.0,58996.0,3.906572]
[1724170636978,0.0142543,58997.0,58996.0,3.906572]
[1724170637177,0.0820393,58997.0,58996.0,0.068786]
[1724170637680,0.0820393,58997.0,58996.0,0.069786]
[1724170637681,0.0920393,58997.0,58996.0,0.069786]
[1724170638380,0.0242543,58997.0,58996.0,0.069786]
[1724170638675,0.0920393,58997.0,58996.0,0.069786]
[1724170639078,0.1598243,58997.0,58996.0,0.002]
[1724170639471,0.2998243,58997.0,58996.0,0.002]
[1724170641682,0.36705563,58997.0,58996.0,0.002]
[1724170641877,0.2320393,58997.0,58996.0,0.069786]
[1724170642282,0.29927126,58997.0,58996.0,0.069786]
[1724170642575,0.2320393,58997.0,58996.0,0.069786]
[1724170643178,0.29927126,58997.0,58996.0,0.069786]
[1724170643370,0.2320393,58997.0,58996.0,0.069786]
[1724170643880,0.1642543,58997.0,58996.0,0.069786]
[1724170644581,0.1642543,58997.0,58996.0,0.12057552]
[1724170644877,0.1642543,58997.0,58996.0,0.069786]
[1724170644878,0.2320393,58997.0,58996.0,0.069786]
[1724170645672,0.06779,58992.0,58991.0,0.06779]
[1724170645873,0.42859,58992.0,58991.0,0.06779]
[1724170646178,0.42859,58992.0,58991.0,0.11857952]
[1724170646375,0.42859,58992.0,58991.0,0.06779]
[1724170646376,0.56859,58992.0,58991.0,0.06779]
[1724170646884,0.57259,58992.0,58991.0,0.06879]
[1724170647083,0.64791887,58992.0,58991.0,0.12057952]
[1724170647382,0.58059,58992.0,58991.0,0.12057952]
[1724170647581,0.58059,58992.0,58991.0,0.06979]
[1724170647782,0.067796,58987.0,58986.0,0.06788213]
[1724170647987,0.067796,58987.0,58977.0,0.3608]
[1724170647988,0.067797,58986.0,58985.0,1e-08]
[1724170648194,0.067797,58986.0,58977.0,0.3608]
[1724170648195,0.067799,58984.0,58983.0,1e-08]
[1724170648374,0.067799,58984.0,58981.0,0.067802]
[1724170648375,0.067801,58983.0,58981.0,0.067802]
[1724170648573,0.06730755,58982.0,58981.0,0.067802]
[1724170648777,0.22730755,58982.0,58981.0,0.067802]
[1724170648977,0.22730599,58982.0,58981.0,0.067802]
[1724170649380,0.16,58982.0,58981.0,0.067802]
[1724170649587,0.22730599,58982.0,58981.0,0.067802]
[1724170649786,0.16,58982.0,58981.0,0.067802]
[1724170650180,0.067805,58979.0,58978.0,3.837806]
[1724170650385,0.067805,58979.0,58978.0,0.067806]
[1724170651085,0.064805,58979.0,58978.0,0.067806]
[1724170651284,0.063805,58979.0,58978.0,0.067806]
[1724170651888,0.223805,58979.0,58978.0,0.072806]
[1724170652794,0.36312,58982.0,58981.0,0.067803]
[1724170652979,0.06751271,58984.0,58981.0,0.067803]
[1724170653186,0.00025444,58984.0,58983.0,0.496402]
[1724170653486,1e-08,58984.0,58983.0,4.33402969]
[1724170653694,1e-08,58984.0,58983.0,4.40183069]
[1724170653883,1e-08,58984.0,58983.0,4.334203]
[1724170654188,0.06725827,58994.0,58983.0,4.334203]
[1724170654401,0.00236,58998.0,58997.0,0.067785]
[1724170654694,0.10113442,59010.0,58997.0,0.067785]
[1724170654695,0.067772,59008.0,58997.0,0.48720798]
[1724170654884,0.237772,59008.0,59000.0,0.3608]
[1724170655192,0.237772,59008.0,59001.0,3.77]
[1724170655984,0.237772,59008.0,59007.0,0.067773]
[1724170656786,0.067775,59006.0,59001.0,3.77]
[1724170656987,0.067782,58999.0,58998.0,0.00025422]
[1724170657190,0.237782,58999.0,58998.0,0.00025422]
[1724170657392,0.24057974,58999.0,58998.0,0.00025422]
[1724170657695,0.07057974,58999.0,58998.0,0.00025422]
[1724170658093,0.07657974,58999.0,58998.0,0.00125422]
[1724170658399,0.073782,58999.0,58998.0,0.06903722]
[1724170658590,0.078782,58999.0,58998.0,0.07003722]
[1724170659496,0.248782,58999.0,58998.0,0.00225422]
[1724170659708,0.31600791,58999.0,58998.0,0.00225422]
[1724170659890,0.06779,58993.0,58991.0,0.067791]
[1724170660086,0.06779,58993.0,58980.0,0.44534822]
[1724170660087,0.067791,58991.0,58978.0,0.1521712]
[1724170660290,0.067808,58977.0,58971.0,0.067813]
[1724170660492,0.237808,58977.0,58971.0,0.067813]
[1724170660691,0.237808,58977.0,58965.0,0.3608]
[1724170660692,0.237808,58977.0,58966.0,0.06762298]
[1724170660897,0.00025422,58977.0,58976.0,0.067809]
[1724170661090,0.17455422,58978.0,58976.0,0.067809]
[1724170661290,0.17455422,58978.0,58972.0,0.3608]
[1724170661291,0.3608,58979.0,58978.0,0.067806]
[1724170661485,0.42801417,58984.0,58981.0,0.067802]
[1724170661486,0.4286,58984.0,58981.0,0.067802]
[1724170661691,0.5786,58984.0,58981.0,0.067802]
[1724170661891,0.58318365,58984.0,58981.0,0.067802]
[1724170662087,0.58318365,58984.0,58983.0,0.067801]
[1724170662088,0.00458365,58984.0,58983.0,0.067801]
[1724170662288,0.3608,58987.0,58984.0,0.067799]
[1724170662693,0.00464264,58987.0,58986.0,0.067797]
[1724170662892,0.00025357,58988.0,58987.0,0.067796]
[1724170664799,0.00025357,58988.0,58987.0,0.069796]
[1724170665789,0.00480015,58988.0,58987.0,0.002]
[1724170665997,0.07259515,58988.0,58987.0,0.002]
[1724170666595,0.07259515,58988.0,58981.0,0.3608]
[1724170666596,0.0678,58984.0,58981.0,0.3608]
[1724170666901,0.14039015,58988.0,58987.0,0.004]
[1724170667202,0.30039015,58988.0,58987.0,0.004]
[1724170667395,0.30039015,58988.0,58980.0,0.00025422]
[1724170667396,0.067803,58981.0,58980.0,0.00025422]
[1724170667597,0.217803,58981.0,58980.0,0.00025422]
[1724170668406,0.22240657,58981.0,58980.0,0.00025422]
[1724170668705,0.22240657,58981.0,58980.0,0.00525422]
[1724170669506,0.22040657,58981.0,58980.0,0.00525422]
[1724170670407,0.22140657,58981.0,58980.0,0.00925422]
[1724170671201,0.15560357,58981.0,58980.0,0.07705822]
[1724170671400,0.00560357,58981.0,58980.0,0.07705822]
[1724170671599,0.001,58981.0,58980.0,0.14486222]
[1724170672007,0.001,58981.0,58980.0,3.91486222]
[1724170672204,0.00025357,58988.0,58980.0,3.91486222]
[1724170672205,0.00025357,58988.0,58987.0,0.067796]
[1724170672406,0.00025357,58988.0,58987.0,0.428596]
[1724170673010,0.00025357,58988.0,58987.0,4.198596]
[1724170673306,0.00025357,58988.0,58987.0,4.199596]
[1724170673807,1e-08,59003.0,58987.0,4.64036]
[1724170674003,0.067775,59006.0,59002.0,0.3608]
[1724170674208,0.3518,59005.0,58999.0,0.3608]
[1724170674512,0.067781,59000.0,58999.0,0.3608]
[1724170674705,0.067784,58998.0,58995.0,0.067787]
[1724170674909,0.05046739,58996.0,58995.0,0.067787]
[1724170675203,0.184,58997.0,58996.0,0.067786]
[1724170675406,0.38346799,58997.0,58996.0,0.067786]
[1724170675604,0.38346799,58997.0,58994.0,0.00025422]
[1724170675605,0.20046799,58997.0,58994.0,0.00025422]
[1724170675811,0.15,58997.0,58994.0,0.00025422]
[1724170676108,0.15454452,58997.0,58994.0,0.00025422]
[1724170676703,0.067786,58996.0,58994.0,0.00025422]
[1724170676909,0.237786,58996.0,58994.0,0.00025422]
[1724170677505,0.237786,58996.0,58995.0,0.001]
[1724170677706,0.637786,58996.0,58995.0,0.001]
[1724170678010,1.154306,58996.0,58994.0,0.00125422]
[1724170678216,0.50852,58995.0,58994.0,0.00125422]
[1724170678509,0.746307,58995.0,58994.0,0.06804222]
[1724170678714,0.745307,58995.0,58994.0,0.06804222]
[1724170678909,0.745307,58995.0,58994.0,0.00025422]
[1724170679412,0.745307,58995.0,58994.0,0.06804222]
[1724170679616,0.17,58995.0,58994.0,0.06804222]
[1724170680016,0.176,58995.0,58994.0,0.06804222]
[1724170680317,0.05647867,58995.0,58994.0,0.84943022]
[1724170680511,0.006,58995.0,58994.0,0.84943022]
[1724170681017,0.015,58995.0,58994.0,0.84943022]
[1724170682115,0.05047867,59003.0,58994.0,0.91721822]
[1724170682310,0.05047867,59002.0,58994.0,0.91721822]
[1724170682510,0.15,59002.0,59001.0,0.42858]
[1724170683220,0.20047867,59002.0,59001.0,0.42858]
[1724170683825,0.20147867,59002.0,59001.0,0.42958]
[1724170684115,0.151,59002.0,59001.0,0.42958]
[1724170684313,0.218779,59002.0,59001.0,0.42958]
[1724170684516,0.218779,59002.0,59001.0,0.001]
[1724170685315,0.795038,59002.0,59001.0,0.001]
[1724170685625,0.067787,58995.0,58994.0,0.00025422]
[1724170685916,0.17,58995.0,58994.0,0.06804222]
[1724170686117,0.17,58995.0,58994.0,0.42884222]
[1724170686616,0.17451278,58995.0,58994.0,0.42884222]
[1724170686812,0.00451278,58995.0,58994.0,0.42884222]
[1724170687007,0.002,58995.0,58994.0,0.84943022]
[1724170687214,0.002,58995.0,58994.0,0.42984222]
[1724170687412,0.069787,58995.0,58994.0,0.06904222]
[1724170687612,0.234787,58995.0,58994.0,0.06904222]
[1724170687817,0.28526289,58995.0,58994.0,0.06904222]
[1724170689819,0.28526289,58995.0,58994.0,3.83904222]
[1724170690025,0.234787,58995.0,58994.0,3.83904222]
[1724170690318,0.23934727,58995.0,58994.0,3.83904222]
[1724170690914,0.01156027,58995.0,58994.0,4.26763022]
[1724170691109,0.05047961,59000.0,58998.0,0.067783]
[1724170691319,0.16,59000.0,58999.0,0.606682]
[1724170691620,0.16,59000.0,58999.0,0.428582]
[1724170692122,0.16,59000.0,58999.0,0.067782]
[1724170692123,0.21047961,59000.0,58999.0,0.067782]
[1724170692720,0.16,59000.0,58999.0,0.067782]
[1724170692912,0.067784,58998.0,58994.0,3.77125422]
[1724170693110,0.21047961,58998.0,58997.0,0.067785]
[1724170693313,0.16,58998.0,58997.0,0.067785]
[1724170693509,0.27828186,58998.0,58997.0,0.067785]
[1724170693811,0.226783,58998.0,58997.0,0.067785]
[1724170694009,0.159,58998.0,58997.0,0.067785]
[1724170694216,0.159,58998.0,58997.0,0.13657]
[1724170695018,0.31149886,59000.0,58997.0,0.13657]
[1724170695019,0.011,59000.0,58999.0,0.067782]
[1724170695218,0.171,59000.0,58999.0,0.067782]
[1724170695611,0.16,59000.0,58999.0,0.067782]
[1724170695814,0.21049886,59000.0,58999.0,0.135564]
[1724170696018,0.16,59000.0,58999.0,0.135564]
[1724170696214,0.00464298,59002.0,59001.0,0.13556]
[1724170696526,0.22549886,59007.0,59006.0,0.067774]
[1724170696715,0.38549886,59007.0,59006.0,0.067774]
[1724170696912,0.335,59007.0,59006.0,0.067774]
[1724170697317,0.33950008,59007.0,59006.0,0.067774]
[1724170698126,0.34150008,59007.0,59006.0,0.068774]
[1724170698521,0.16650008,59007.0,59006.0,0.136548]
[1724170698721,0.16650008,59007.0,59006.0,0.068774]
[1724170699012,0.16650008,59007.0,59006.0,0.069774]
[1724170699013,0.18050008,59007.0,59006.0,0.069774]
[1724170699222,0.02050008,59007.0,59006.0,0.137548]
[1724170700827,0.02229715,59007.0,59006.0,0.137548]
[1724170701926,0.01779707,59007.0,59006.0,0.205322]
[1724170702120,0.32994573,59013.0,59012.0,0.203301]
[1724170702319,4e-05,59015.0,59014.0,0.203295]
[1724170702822,0.05049886,59019.0,59016.0,0.067763]
[1724170703124,0.05049886,59021.0,59020.0,0.135516]
[1724170703325,0.00465739,59022.0,59021.0,0.067757]
[1724170703532,0.05049886,59026.0,59025.0,0.067752]
[1724170703829,0.17,59026.0,59025.0,0.067752]
[1724170705317,0.067756,59022.0,59021.0,3.771]
[1724170705528,0.067756,59022.0,59016.0,0.067762]
[1724170705529,0.06776,59019.0,59016.0,0.067762]
[1724170705823,0.22776,59019.0,59012.0,0.3608]
[1724170706020,0.22776,59019.0,59018.0,0.06776]
[1724170706226,0.05043649,59021.0,59020.0,0.067758]
[1724170706426,0.05043649,59021.0,59018.0,0.3608]
[1724170706427,0.16,59021.0,59018.0,0.3608]
[1724170706627,0.159,59021.0,59020.0,0.067758]
[1724170707028,0.158,59021.0,59020.0,0.067758]
[1724170708228,0.158,59021.0,59018.0,0.001]
[1724170708229,0.067759,59019.0,59018.0,0.001]
[1724170708425,0.237759,59019.0,59015.0,0.00025422]
[1724170708625,0.06776,59018.0,59017.0,0.067761]
[1724170708827,0.23776,59018.0,59017.0,0.067761]
[1724170709029,0.23676,59018.0,59017.0,0.067761]
[1724170709830,0.23676,59018.0,59004.0,0.06753595]
[1724170709831,0.135532,59013.0,59004.0,0.06753595]
[1724170710031,0.067777,59004.0,58994.0,0.3608]
[1724170710225,0.3608,59000.0,58994.0,0.3608]
[1724170710431,0.1753,58999.0,58994.0,0.3608]
[1724170710630,0.3353,58999.0,58994.0,0.3608]
[1724170710827,0.38573649,58999.0,58994.0,0.3608]
[1724170711535,0.066786,58996.0,58994.0,0.3608]
[1724170711737,0.067787,58995.0,58994.0,0.3608]
[1724170711933,0.061787,58995.0,58994.0,0.3608]
[1724170712934,0.061787,58995.0,58994.0,0.3668]
[1724170713131,0.061787,58995.0,58994.0,0.3718]
[1724170714138,0.221787,58995.0,58994.0,0.006]
[1724170714325,0.221787,58995.0,58994.0,0.011]
[1724170715536,0.221787,58995.0,58994.0,0.01]
[1724170715537,0.222787,58995.0,58994.0,0.01]
[1724170717135,0.290574,58995.0,58994.0,0.01]
[1724170717339,0.651374,58995.0,58994.0,0.01]
[1724170717536,0.651374,58995.0,58991.0,0.00025422]
[1724170717537,0.13558,58992.0,58991.0,0.00025422]
[1724170717744,0.6977883,58992.0,58991.0,0.00025422]
[1724170717939,0.64738,58992.0,58991.0,0.00025422]
[1724170718547,1.15594,58992.0,58991.0,0.00025422]
[1724170718738,1.22373,58992.0,58991.0,0.00025422]
[1724170719239,1.55594,58992.0,58991.0,0.00025422]
[1724170719636,1.55594,58992.0,58991.0,0.00425422]
[1724170719836,1.55694,58992.0,58991.0,0.00425422]
[1724170720038,1.56201487,58992.0,58991.0,0.00425422]
[1724170720336,1.16201487,58992.0,58991.0,0.00425422]
[1724170720935,1.56201487,58992.0,58991.0,0.00425422]
[1724170722034,0.067801,58983.0,58977.0,3.77]
[1724170722234,0.930401,58983.0,58977.0,3.77]
[1724170722435,0.3392,58982.0,58977.0,3.77]
[1724170722641,0.135612,58978.0,58977.0,3.77]
[1724170722946,0.285612,58978.0,58977.0,3.77]
[1724170723140,0.285612,58978.0,58970.0,0.067816]
[1724170723141,0.067809,58976.0,58972.0,0.00025422]
[1724170723359,0.213809,58976.0,58972.0,0.06806722]
[1724170723553,0.213809,58976.0,58973.0,0.067811]
[1724170723747,0.213809,58976.0,58973.0,3.837811]
[1724170723948,0.209809,58976.0,58973.0,3.837811]
[1724170724355,0.209809,58976.0,58973.0,3.77]
[1724170725153,0.209809,58976.0,58974.0,0.06781]
[1724170725358,0.209809,58976.0,58975.0,0.06799116]
[1724170725557,0.210809,58976.0,58975.0,0.06799116]
[1724170725858,0.210809,58976.0,58975.0,0.07099116]
[1724170726059,0.21593883,58976.0,58975.0,0.07099116]
[1724170726559,0.21593883,58976.0,58975.0,3.84099116]
[1724170728163,0.21593883,58976.0,58975.0,0.07099116]
[1724170731961,0.56773883,58976.0,58975.0,0.07099116]
[1724170732358,0.63554783,58976.0,58975.0,0.00318116]
[1724170733368,0.135624,58973.0,58972.0,0.00025422]
[1724170733563,0.666424,58973.0,58972.0,0.00025422]
[1724170733758,1.175144,58973.0,58972.0,0.00025422]
[1724170734159,1.107332,58973.0,58972.0,0.00025422]
[1724170734459,0.17015462,58973.0,58972.0,0.06806722]
[1724170734659,0.23796662,58973.0,58972.0,0.06806722]
[1724170735164,0.23896662,58973.0,58972.0,0.06806722]
[1724170735958,0.23896662,58973.0,58972.0,0.00025422]
[1724170736160,0.23896662,58973.0,58972.0,0.00325422]
[1724170736356,0.66757862,58973.0,58972.0,0.00325422]
[1724170736965,0.67601626,58973.0,58972.0,0.00325422]
[1724170737162,0.66757862,58973.0,58972.0,0.00325422]
[1724170737367,0.59976662,58973.0,58972.0,0.00325422]
[1724170737567,0.59976662,58973.0,58972.0,0.07106722]
[1724170740170,0.23896662,58973.0,58972.0,0.07106722]
[1724170742874,0.59076662,58973.0,58972.0,0.00325422]
[1724170743176,1.01937862,58973.0,58972.0,0.00325422]
[1724170743777,1.09583538,58973.0,58972.0,0.00325422]
[1724170744368,1.02802338,58973.0,58972.0,0.00325422]
[1724170744570,1.00207419,58973.0,58972.0,0.00325422]
[1724170744870,0.23896662,58973.0,58972.0,0.07106722]
[1724170746468,0.28947419,58973.0,58972.0,0.07106722]